[Event "RUS-chT Blitz Men 2018"]
[Site "Sochi"]
[Date "2018.10.10"]
[Round "10"]
[White "Kozak, Alexander"]
[Black "Afanasiev, Nikita"]
[Result "0-1"]
[ECO "B06"]
[WhiteElo "2262"]
[BlackElo "2487"]
[Annotator "ChessBase"]
[PlyCount "74"]
[EventDate "2018.10.10"]
[EventType "swiss"]
[EventCountry "RUS"]
[SourceTitle "playchess.com"]
[Source "ChessBase"]
[SourceQuality "1"]
[TimeControl "180+2"]

1. e4 {[%emt 0:00:00]} g6 {[%emt 0:00:00]} 2. d4 {[%emt 0:00:00]} Bg7 {[%emt 0:00:00]} 3. c3 {[%emt 0:00:01]} d6 {[%emt 0:00:01]} 4. f4 {[%emt 0:00:01]} e5 {[%emt 0:00:04]} 5. Nf3 {[%emt 0:00:01]} Nd7 {[%emt 0:00:04]} 6. Bd3 {[%emt 0:00:03]} Ngf6 {[%emt 0:00:03]} 7. O-O {[%emt 0:00:02]} O-O {[%emt 0:00:03]} 8. fxe5 {[%emt 0:00:25]} dxe5 {[%emt 0:00:01]} 9. Nbd2 {[%emt 0:00:18]} exd4 {[%emt 0:00:09]} 10. cxd4 {[%emt 0:00:01]} c5 {[%emt 0:00:00]} 11. d5 {[%emt 0:00:47]} Ng4 {[%emt 0:00:02]} 12. Nc4 {[%emt 0:00:01]} b5 {[%emt 0:00:03]} 13. Ne3 {[%emt 0:00:02]} Nxe3 {[%emt 0:00:23]} 14. Bxe3 {[%emt 0:00:01]} c4 {[%emt 0:00:01]} 15. Bc2 {[%emt 0:00:13]} Qe7 {[%emt 0:00:17]} 16. Bd4 {[%emt 0:00:06]} Ne5 {[%emt 0:00:11]} 17. Qd2 {[%emt 0:00:15]} Bg4 {[%emt 0:00:18]} 18. Rae1 {[%emt 0:00:20]} a5 {[%emt 0:00:17]} 19. Kh1 {[%emt 0:00:02]} b4 {[%emt 0:00:03]} 20. Qf4 {[%emt 0:00:08]} Bxf3 {[%emt 0:00:35]} 21. gxf3 {[%emt 0:00:01]} a4 {[%emt 0:00:02]} 22. Qe3 {[%emt 0:00:05]} b3 {[%emt 0:00:01]} 23. axb3 {[%emt 0:00:04]} axb3 {[%emt 0:00:02]} 24. Bb1 {[%emt 0:00:02]} Qh4 {[%emt 0:00:04]} 25. Qc3 {[%emt 0:00:08]} Nxf3 {[%emt 0:00:05]} 26. Qxf3 {[%emt 0:00:24]} Bxd4 {[%emt 0:00:03]} 27. Re2 {[%emt 0:00:01]} Be5 {[%emt 0:00:02]} 28. Ref2 {[%emt 0:00:11]} Ra6 {[%emt 0:00:06]} 29. Qe2 {[%emt 0:00:02]} Ra4 {[%emt 0:00:06]} 30. Rc1 {[%emt 0:00:02]} Ra1 {[%emt 0:00:16]} 31. Rff1 {[%emt 0:00:04]} Ra4 {[%emt 0:00:07]} 32. Rf3 {[%emt 0:00:06]} Kg7 {[%emt 0:00:02]} 33. Qg2 {[%emt 0:00:01]} f6 {[%emt 0:00:07]} 34. Rh3 {[%emt 0:00:03]} Qg5 {[%emt 0:00:01]} 35. Qf1 {[%emt 0:00:06]} Rc8 {[%emt 0:00:05]} 36. Qe2 {[%emt 0:00:02]} Qxc1+ 37. Kg2 Qxb2 {[%emt 0:00:03]} 0-1

[Event "RUS-chT Blitz Men 2018"]
[Site "Sochi"]
[Date "2018.10.10"]
[Round "10"]
[White "Borisova, Ekaterina"]
[Black "Chizhikov, Vladislav"]
[Result "0-1"]
[ECO "D02"]
[WhiteElo "2256"]
[BlackElo "2304"]
[Annotator "NA"]
[PlyCount "96"]
[EventDate "2018.10.10"]
[EventType "swiss"]
[EventCountry "RUS"]
[SourceTitle "playchess.com"]
[Source "ChessBase"]
[SourceQuality "1"]
[TimeControl "180+2"]

1. d4 {[%emt 0:00:00]} d5 {[%emt 0:00:00]} 2. Nf3 {[%emt 0:00:00]} c6 {[%emt 0:00:00]} 3. g3 {[%emt 0:00:01]} h6 {[%emt 0:00:02]} 4. Bg2 {[%emt 0:00:02]} Bf5 {[%emt 0:00:01]} 5. O-O {[%emt 0:00:01]} Nf6 {[%emt 0:00:01]} 6. c4 {[%emt 0:00:01]} e6 {[%emt 0:00:01]} 7. Nc3 {[%emt 0:00:01]} Nbd7 {[%emt 0:00:01]} 8. Nd2 {[%emt 0:00:00]} Be7 {[%emt 0:00:04]} 9. e4 {[%emt 0:00:01]} dxe4 {[%emt 0:00:01]} 10. Ndxe4 {[%emt 0:00:01]} Nxe4 {[%emt 0:00:02]} 11. Nxe4 {[%emt 0:00:00]} Nf6 {[%emt 0:00:03]} 12. Nc3 {[%emt 0:00:01]} O-O {[%emt 0:00:02]} 13. Be3 {[%emt 0:00:03]} Qa5 {[%emt 0:00:03]} 14. Qb3 {[%emt 0:00:11]} Qb4 {[%emt 0:00:07]} 15. Qxb4 {[%emt 0:00:22]} Bxb4 {[%emt 0:00:01]} 16. Rfc1 {[%emt 0:00:08]} Rfd8 {[%emt 0:00:05]} 17. a3 {[%emt 0:00:02]} Be7 {[%emt 0:00:06]} 18. b4 {[%emt 0:00:07]} Rd7 {[%emt 0:00:04]} 19. b5 {[%emt 0:00:09]} cxb5 {[%emt 0:00:02]} 20. Nxb5 {[%emt 0:00:06]} a6 {[%emt 0:00:10]} 21. Nc3 {[%emt 0:00:04]} Rc8 {[%emt 0:00:11]} 22. Na4 {[%emt 0:00:04]} Rdc7 {[%emt 0:00:02]} 23. Nb6 {[%emt 0:00:05]} Rd8 {[%emt 0:00:01]} 24. c5 {[%emt 0:00:11]} Be4 {[%emt 0:00:10]} 25. Bf4 {[%emt 0:00:17]} Rc6 {[%emt 0:00:01]} 26. f3 {[%emt 0:00:21]} Bg6 {[%emt 0:00:19]} 27. Be5 {[%emt 0:00:01]} Nd7 {[%emt 0:00:26]} 28. Nc4 {[%emt 0:00:28]} f6 {[%emt 0:00:15]} 29. Bd6 {[%emt 0:00:08]} Bxd6 {[%emt 0:00:08]} 30. Nxd6 {[%emt 0:00:00]} Rc7 {[%emt 0:00:13]} 31. f4 {[%emt 0:00:03]} Rb8 {[%emt 0:00:18]} 32. Kf2 {[%emt 0:00:39]} e5 {[%emt 0:00:01]} 33. Bd5+ {[%emt 0:00:02]} Kh7 {[%emt 0:00:01]} 34. f5 {[%emt 0:00:01]} Bh5 {[%emt 0:00:10]} 35. h3 {[%emt 0:00:10]} exd4 {[%emt 0:00:02]} 36. g4 {[%emt 0:00:00]} Be8 {[%emt 0:00:01]} 37. Ne4 {[%emt 0:00:13]} Ne5 {[%emt 0:00:03]} 38. Ke2 {[%emt 0:00:03]} Bb5+ {[%emt 0:00:01]} 39. Kd2 {[%emt 0:00:01]} Rd8 {[%emt 0:00:02]} 40. Be6 {[%emt 0:00:01]} d3 {[%emt 0:00:03]} 41. a4 {[%emt 0:00:02]} Bc6 {[%emt 0:00:01]} 42. Nc3 {[%emt 0:00:02]} Nf3+ {[%emt 0:00:02]} 43. Ke3 {[%emt 0:00:01]} d2 {[%emt 0:00:01]} 44. Rf1 {[%emt 0:00:00]} Ng5 {[%emt 0:00:07]} 45. h4 {[%emt 0:00:01]} Nxe6 {[%emt 0:00:01]} 46. fxe6 {[%emt 0:00:01]} Re7 {[%emt 0:00:00]} 47. Rad1 {[%emt 0:00:06]} Rxe6+ {[%emt 0:00:02]} 48. Kf4 {[%emt 0:00:01]} Rd4+ {[%emt 0:00:02]} 0-1

[Event "RUS-chT Blitz Men 2018"]
[Site "Sochi"]
[Date "2018.10.10"]
[Round "11"]
[White "Sergeyev, Alexander"]
[Black "Jary, Sergey"]
[Result "1/2-1/2"]
[ECO "E11"]
[WhiteElo "2397"]
[BlackElo "2286"]
[Annotator "NA"]
[PlyCount "35"]
[EventDate "2018.10.10"]
[EventType "swiss"]
[EventCountry "RUS"]
[SourceTitle "playchess.com"]
[Source "ChessBase"]
[SourceQuality "1"]
[TimeControl "180+2"]

1. d4 {[%emt 0:00:00]} Nf6 {[%emt 0:00:00]} 2. Nf3 {[%emt 0:00:01]} e6 {[%emt 0:00:03]} 3. c4 {[%emt 0:00:03]} Bb4+ {[%emt 0:00:01]} 4. Nbd2 {[%emt 0:00:03]} O-O {[%emt 0:00:03]} 5. a3 {[%emt 0:00:02]} Be7 {[%emt 0:00:01]} 6. b4 {[%emt 0:00:03]} d5 {[%emt 0:00:00]} 7. Bb2 {[%emt 0:00:01]} b6 {[%emt 0:00:02]} 8. cxd5 {[%emt 0:00:07]} exd5 {[%emt 0:00:04]} 9. e3 {[%emt 0:00:01]} Bb7 {[%emt 0:00:00]} 10. Bd3 {[%emt 0:00:03]} Nbd7 {[%emt 0:00:06]} 11. O-O {[%emt 0:00:06]} Bd6 {[%emt 0:00:02]} 12. Ne5 {[%emt 0:00:11]} Re8 {[%emt 0:00:06]} 13. f4 {[%emt 0:00:04]} Qe7 {[%emt 0:00:07]} 14. Rf3 {[%emt 0:00:07]} Ne4 {[%emt 0:00:09]} 15. Qc2 {[%emt 0:00:11]} f5 {[%emt 0:00:07]} 16. Nc6 {[%emt 0:00:22]} Qe6 {[%emt 0:00:18]} 17. Ne5 {[%emt 0:00:12]} Qe7 {[%emt 0:00:02]} 18. Qd1 1/2-1/2

[Event "RUS-chT Blitz Men 2018"]
[Site "Sochi"]
[Date "2018.10.10"]
[Round "11"]
[White "Ozgibcev, Anatoly"]
[Black "Chos, Alexey"]
[Result "1-0"]
[ECO "C50"]
[WhiteElo "2368"]
[BlackElo "2296"]
[Annotator "NA"]
[PlyCount "87"]
[EventDate "2018.10.10"]
[EventType "swiss"]
[EventCountry "RUS"]
[SourceTitle "playchess.com"]
[Source "ChessBase"]
[SourceQuality "1"]
[TimeControl "180+2"]

1. e4 {[%emt 0:00:00]} e5 {[%emt 0:00:00]} 2. Nf3 {[%emt 0:00:00]} Nc6 {[%emt 0:00:00]} 3. Bc4 {[%emt 0:00:01]} Be7 {[%emt 0:00:03]} 4. d4 {[%emt 0:00:03]} d6 {[%emt 0:00:06]} 5. dxe5 {[%emt 0:00:02]} Nxe5 {[%emt 0:00:04]} 6. Nxe5 {[%emt 0:00:02]} dxe5 {[%emt 0:00:01]} 7. Qh5 {[%emt 0:00:03]} g6 {[%emt 0:00:15]} 8. Qxe5 {[%emt 0:00:02]} Nf6 {[%emt 0:00:01]} 9. Bh6 {[%emt 0:00:06]} Rg8 {[%emt 0:00:09]} 10. Bg5 {[%emt 0:00:11]} Kf8 {[%emt 0:00:31]} 11. Nc3 {[%emt 0:00:04]} c6 {[%emt 0:00:16]} 12. Rd1 {[%emt 0:00:06]} Nd7 {[%emt 0:00:03]} 13. Qf4 {[%emt 0:00:29]} Qe8 {[%emt 0:00:20]} 14. Bh6+ {[%emt 0:00:13]} Rg7 {[%emt 0:00:01]} 15. O-O {[%emt 0:00:08]} Kg8 {[%emt 0:00:06]} 16. Qg3 {[%emt 0:00:22]} Bf6 {[%emt 0:00:11]} 17. Bxg7 {[%emt 0:00:17]} Bxg7 {[%emt 0:00:02]} 18. Rfe1 {[%emt 0:00:09]} Ne5 {[%emt 0:00:06]} 19. Bb3 {[%emt 0:00:01]} a5 {[%emt 0:00:02]} 20. a4 {[%emt 0:00:07]} Be6 {[%emt 0:00:07]} 21. f4 {[%emt 0:00:08]} Ng4 {[%emt 0:00:13]} 22. Bxe6 {[%emt 0:00:14]} Qxe6 {[%emt 0:00:03]} 23. h3 {[%emt 0:00:05]} Nf6 {[%emt 0:00:08]} 24. e5 {[%emt 0:00:03]} Nh5 {[%emt 0:00:03]} 25. Qf3 {[%emt 0:00:06]} Qc4 {[%emt 0:00:07]} 26. Re4 {[%emt 0:00:04]} Qc5+ {[%emt 0:00:03]} 27. Qf2 {[%emt 0:00:01]} Qe7 {[%emt 0:00:03]} 28. Red4 {[%emt 0:00:02]} Bh6 {[%emt 0:00:04]} 29. g3 {[%emt 0:00:06]} Bf8 {[%emt 0:00:06]} 30. Kg2 {[%emt 0:00:04]} Qe8 {[%emt 0:00:08]} 31. Ne4 {[%emt 0:00:05]} c5 {[%emt 0:00:07]} 32. Rd7 {[%emt 0:00:03]} Qe6 {[%emt 0:00:06]} 33. Rxb7 {[%emt 0:00:07]} Qc6 {[%emt 0:00:01]} 34. Qf3 {[%emt 0:00:04]} Qxa4 {[%emt 0:00:13]} 35. b3 {[%emt 0:00:07]} Qa2 {[%emt 0:00:04]} 36. Rd2 {[%emt 0:00:03]} Bh6 {[%emt 0:00:08]} 37. Nd6 {[%emt 0:00:05]} Rf8 {[%emt 0:00:06]} 38. Ra7 {[%emt 0:00:03]} Qb1 {[%emt 0:00:05]} 39. Re2 {[%emt 0:00:02]} Qc1 {[%emt 0:00:03]} 40. Rf2 {[%emt 0:00:01]} Qe1 41. Rc7 {[%emt 0:00:04]} Qc1 {[%emt 0:00:07]} 42. Rxc5 {[%emt 0:00:02]} a4 {[%emt 0:00:02]} 43. bxa4 {[%emt 0:00:02]} Qa1 {[%emt 0:00:02]} 44. Qd1 1-0

[Event "RUS-chT Blitz Men 2018"]
[Site "Sochi"]
[Date "2018.10.10"]
[Round "11"]
[White "Tenikashvili, Georgij"]
[Black "Chizhikov, Vladislav"]
[Result "0-1"]
[ECO "D08"]
[WhiteElo "2361"]
[BlackElo "2304"]
[Annotator "NA"]
[PlyCount "110"]
[EventDate "2018.10.10"]
[EventType "swiss"]
[EventCountry "RUS"]
[SourceTitle "playchess.com"]
[Source "ChessBase"]
[SourceQuality "1"]
[TimeControl "180+2"]

1. d4 {[%emt 0:00:00]} d5 {[%emt 0:00:00]} 2. c4 {[%emt 0:00:00]} e5 {[%emt 0:00:00]} 3. dxe5 {[%emt 0:00:02]} d4 {[%emt 0:00:00]} 4. Nf3 {[%emt 0:00:02]} Nc6 {[%emt 0:00:01]} 5. a3 {[%emt 0:00:09]} Bg4 {[%emt 0:00:02]} 6. Bf4 {[%emt 0:00:15]} Nge7 {[%emt 0:00:02]} 7. Nbd2 {[%emt 0:00:03]} Ng6 {[%emt 0:00:02]} 8. Bg3 {[%emt 0:00:01]} Qe7 {[%emt 0:00:01]} 9. h3 {[%emt 0:00:24]} Bh5 {[%emt 0:00:07]} 10. Qb3 {[%emt 0:00:04]} O-O-O {[%emt 0:00:05]} 11. O-O-O {[%emt 0:00:13]} Ngxe5 {[%emt 0:00:06]} 12. Bh2 {[%emt 0:00:49]} Bg6 {[%emt 0:00:03]} 13. g4 {[%emt 0:00:07]} d3 {[%emt 0:00:10]} 14. Nxe5 {[%emt 0:00:07]} Nxe5 {[%emt 0:00:02]} 15. Bxe5 {[%emt 0:00:13]} Qxe5 {[%emt 0:00:01]} 16. exd3 {[%emt 0:00:06]} Bc5 {[%emt 0:00:10]} 17. Bg2 {[%emt 0:00:08]} c6 {[%emt 0:00:05]} 18. Ne4 {[%emt 0:00:06]} Bxe4 {[%emt 0:00:07]} 19. Bxe4 {[%emt 0:00:01]} Bxf2 {[%emt 0:00:10]} 20. Rhf1 {[%emt 0:00:11]} Be3+ {[%emt 0:00:01]} 21. Kb1 {[%emt 0:00:00]} f6 {[%emt 0:00:04]} 22. Rf3 {[%emt 0:00:11]} Bd4 {[%emt 0:00:02]} 23. Qc2 {[%emt 0:00:14]} Kb8 {[%emt 0:00:04]} 24. Rf5 {[%emt 0:00:01]} Qc7 {[%emt 0:00:04]} 25. Rff1 {[%emt 0:00:07]} h5 {[%emt 0:00:08]} 26. Qg2 {[%emt 0:00:02]} hxg4 {[%emt 0:00:02]} 27. Qxg4 {[%emt 0:00:03]} Qb6 {[%emt 0:00:11]} 28. Rd2 {[%emt 0:00:01]} Qc7 {[%emt 0:00:02]} 29. Ka2 {[%emt 0:00:02]} a5 {[%emt 0:00:06]} 30. Rg2 {[%emt 0:00:05]} g5 {[%emt 0:00:04]} 31. Bf5 {[%emt 0:00:03]} Be5 {[%emt 0:00:01]} 32. Qd1 {[%emt 0:00:03]} Rd4 {[%emt 0:00:06]} 33. Qb3 {[%emt 0:00:02]} Rhd8 {[%emt 0:00:06]} 34. Be4 {[%emt 0:00:01]} Ka7 {[%emt 0:00:04]} 35. Rh1 {[%emt 0:00:02]} Qd7 {[%emt 0:00:12]} 36. Rf2 {[%emt 0:00:03]} Bf4 {[%emt 0:00:04]} 37. Rg2 {[%emt 0:00:02]} f5 {[%emt 0:00:02]} 38. Bf3 {[%emt 0:00:08]} Rxd3 {[%emt 0:00:01]} 39. Qa4 {[%emt 0:00:02]} Rxf3 {[%emt 0:00:03]} 40. Qxa5+ Kb8 41. h4 {[%emt 0:00:04]} g4 {[%emt 0:00:02]} 42. Rgg1 {[%emt 0:00:02]} Rd3 {[%emt 0:00:04]} 43. Re1 {[%emt 0:00:01]} Bc7 {[%emt 0:00:02]} 44. Qb4 {[%emt 0:00:01]} Qd4 {[%emt 0:00:05]} 45. Re7 {[%emt 0:00:02]} Re3 {[%emt 0:00:13]} 46. h5 {[%emt 0:00:03]} Rxe7 {[%emt 0:00:02]} 47. Qxe7 Qxc4+ {[%emt 0:00:00]} 48. Ka1 {[%emt 0:00:02]} Qb3 {[%emt 0:00:08]} 49. h6 {[%emt 0:00:02]} Rd1+ {[%emt 0:00:01]} 50. Rxd1 {[%emt 0:00:00]} Qxd1+ {[%emt 0:00:01]} 51. Ka2 {[%emt 0:00:01]} Qd5+ {[%emt 0:00:01]} 52. Ka1 {[%emt 0:00:01]} Qh1+ {[%emt 0:00:01]} 53. Ka2 {[%emt 0:00:01]} Qxh6 {[%emt 0:00:02]} 54. Qe8+ {[%emt 0:00:05]} Ka7 {[%emt 0:00:00]} 55. Qe3+ {[%emt 0:00:03]} Qxe3 {[%emt 0:00:02]} 0-1

[Event "RUS-chT Blitz Men 2018"]
[Site "Sochi"]
[Date "2018.10.10"]
[Round "11"]
[White "Ivlev, Aleksey"]
[Black "Nazaretyan, Tigran"]
[Result "0-1"]
[ECO "A61"]
[WhiteElo "2326"]
[BlackElo "2248"]
[Annotator "NA"]
[PlyCount "112"]
[EventDate "2018.10.10"]
[EventType "swiss"]
[EventCountry "RUS"]
[SourceTitle "playchess.com"]
[Source "ChessBase"]
[SourceQuality "1"]
[TimeControl "180+2"]

1. d4 {[%emt 0:00:00]} Nf6 {[%emt 0:00:00]} 2. c4 {[%emt 0:00:00]} c5 {[%emt 0:00:00]} 3. d5 {[%emt 0:00:00]} e6 {[%emt 0:00:01]} 4. Nc3 {[%emt 0:00:01]} exd5 {[%emt 0:00:01]} 5. cxd5 {[%emt 0:00:01]} d6 {[%emt 0:00:01]} 6. Nf3 {[%emt 0:00:01]} g6 {[%emt 0:00:03]} 7. Bf4 {[%emt 0:00:00]} Bg7 {[%emt 0:00:01]} 8. Qa4+ {[%emt 0:00:01]} Bd7 {[%emt 0:00:03]} 9. Qb3 {[%emt 0:00:01]} Bc8 {[%emt 0:00:35]} 10. h3 {[%emt 0:00:02]} O-O {[%emt 0:00:01]} 11. e3 {[%emt 0:00:00]} a6 {[%emt 0:00:01]} 12. a4 {[%emt 0:00:02]} Qc7 {[%emt 0:00:14]} 13. Be2 {[%emt 0:00:01]} Nbd7 {[%emt 0:00:02]} 14. O-O {[%emt 0:00:01]} Re8 {[%emt 0:00:01]} 15. Bh2 {[%emt 0:00:07]} Ne4 {[%emt 0:00:04]} 16. Qc2 {[%emt 0:00:22]} Ndf6 {[%emt 0:00:06]} 17. Rab1 {[%emt 0:00:19]} Bf5 {[%emt 0:00:10]} 18. g4 {[%emt 0:00:57]} Nxc3 {[%emt 0:00:18]} 19. gxf5 {[%emt 0:00:08]} Nxb1 {[%emt 0:00:03]} 20. fxg6 {[%emt 0:00:00]} hxg6 {[%emt 0:00:06]} 21. Rxb1 {[%emt 0:00:04]} Rad8 {[%emt 0:00:14]} 22. Bc4 {[%emt 0:00:02]} Qe7 {[%emt 0:00:05]} 23. Nd2 {[%emt 0:00:03]} Ne4 {[%emt 0:00:03]} 24. Nxe4 {[%emt 0:00:19]} Qxe4 {[%emt 0:00:02]} 25. Qxe4 {[%emt 0:00:01]} Rxe4 {[%emt 0:00:01]} 26. b3 {[%emt 0:00:01]} Be5 {[%emt 0:00:10]} 27. Bxe5 {[%emt 0:00:23]} Rxe5 {[%emt 0:00:01]} 28. a5 {[%emt 0:00:08]} Rb8 {[%emt 0:00:07]} 29. Ra1 {[%emt 0:00:02]} f5 {[%emt 0:00:03]} 30. Kg2 {[%emt 0:00:01]} Kf7 {[%emt 0:00:02]} 31. Kg3 {[%emt 0:00:08]} Kf6 {[%emt 0:00:03]} 32. Ra2 {[%emt 0:00:04]} g5 {[%emt 0:00:02]} 33. Ra1 {[%emt 0:00:02]} Re7 {[%emt 0:00:02]} 34. Ra2 {[%emt 0:00:17]} Rh7 {[%emt 0:00:02]} 35. Bf1 {[%emt 0:00:07]} Ke5 {[%emt 0:00:03]} 36. Rd2 {[%emt 0:00:07]} b5 {[%emt 0:00:07]} 37. axb6 {[%emt 0:00:04]} Rxb6 {[%emt 0:00:01]} 38. Bc4 {[%emt 0:00:01]} f4+ {[%emt 0:00:04]} 39. exf4+ {[%emt 0:00:04]} gxf4+ {[%emt 0:00:01]} 40. Kg4 {[%emt 0:00:00]} Rg7+ {[%emt 0:00:02]} 41. Kf3 {[%emt 0:00:01]} Rf7 {[%emt 0:00:23]} 42. Re2+ {[%emt 0:00:01]} Kd4 {[%emt 0:00:01]} 43. Rd2+ {[%emt 0:00:05]} Kc3 44. Rd3+ Kc2 {[%emt 0:00:01]} 45. Ke2 {[%emt 0:00:08]} a5 {[%emt 0:00:02]} 46. Rd2+ {[%emt 0:00:00]} Kc3 {[%emt 0:00:02]} 47. Rd3+ {[%emt 0:00:02]} Kb4 {[%emt 0:00:00]} 48. Rd2 {[%emt 0:00:07]} a4 {[%emt 0:00:02]} 49. Rb2 {[%emt 0:00:02]} Kc3 {[%emt 0:00:10]} 50. Rb1 {[%emt 0:00:05]} axb3 {[%emt 0:00:01]} 51. Bd3 {[%emt 0:00:00]} b2 {[%emt 0:00:02]} 52. h4 {[%emt 0:00:03]} f3+ {[%emt 0:00:03]} 53. Ke3 {[%emt 0:00:02]} Re7+ {[%emt 0:00:01]} 54. Be4 {[%emt 0:00:00]} Rb4 {[%emt 0:00:01]} 55. Kxf3 {[%emt 0:00:02]} Rbxe4 {[%emt 0:00:01]} 56. h5 {[%emt 0:00:01]} Re1 {[%emt 0:00:01]} 0-1

[Event "RUS-chT Blitz Men 2018"]
[Site "Sochi"]
[Date "2018.10.10"]
[Round "11"]
[White "Inozemtsev, Sergei"]
[Black "Alexeev, Alexey"]
[Result "1-0"]
[ECO "C02"]
[WhiteElo "2310"]
[BlackElo "2287"]
[Annotator "NA"]
[PlyCount "111"]
[EventDate "2018.10.10"]
[EventType "swiss"]
[EventCountry "RUS"]
[SourceTitle "playchess.com"]
[Source "ChessBase"]
[SourceQuality "1"]
[TimeControl "180+2"]

1. e4 {[%emt 0:00:00]} e6 {[%emt 0:00:00]} 2. d4 {[%emt 0:00:01]} d5 {[%emt 0:00:00]} 3. e5 {[%emt 0:00:01]} c5 {[%emt 0:00:01]} 4. c3 {[%emt 0:00:01]} Nc6 {[%emt 0:00:01]} 5. Nf3 {[%emt 0:00:01]} Bd7 {[%emt 0:00:01]} 6. a3 {[%emt 0:00:04]} Nge7 {[%emt 0:00:02]} 7. Bd3 {[%emt 0:00:04]} cxd4 {[%emt 0:00:11]} 8. cxd4 {[%emt 0:00:02]} Qb6 {[%emt 0:00:02]} 9. Bc2 {[%emt 0:00:02]} Nf5 {[%emt 0:00:17]} 10. Bxf5 {[%emt 0:00:02]} exf5 {[%emt 0:00:01]} 11. O-O {[%emt 0:00:03]} Be7 {[%emt 0:00:07]} 12. Nc3 {[%emt 0:00:03]} Be6 {[%emt 0:00:01]} 13. b4 {[%emt 0:00:01]} h6 {[%emt 0:00:05]} 14. h4 {[%emt 0:00:02]} Rd8 {[%emt 0:00:09]} 15. Be3 {[%emt 0:00:04]} f4 {[%emt 0:00:06]} 16. Bxf4 {[%emt 0:00:02]} Bg4 {[%emt 0:00:00]} 17. Be3 {[%emt 0:00:06]} Bxh4 {[%emt 0:00:08]} 18. Re1 {[%emt 0:00:11]} Bg5 {[%emt 0:00:04]} 19. Rc1 {[%emt 0:00:18]} O-O {[%emt 0:00:06]} 20. Bxg5 {[%emt 0:00:02]} hxg5 {[%emt 0:00:01]} 21. Na4 {[%emt 0:00:05]} Bxf3 {[%emt 0:00:32]} 22. Qxf3 {[%emt 0:00:03]} Qxd4 {[%emt 0:00:03]} 23. Qg3 {[%emt 0:00:04]} Qf4 {[%emt 0:00:11]} 24. Qxf4 {[%emt 0:00:02]} gxf4 {[%emt 0:00:01]} 25. Nc5 {[%emt 0:00:02]} b6 {[%emt 0:00:06]} 26. Nd3 {[%emt 0:00:01]} Nd4 {[%emt 0:00:10]} 27. Nxf4 {[%emt 0:00:02]} Ne6 {[%emt 0:00:01]} 28. Nd3 {[%emt 0:00:02]} Rc8 {[%emt 0:00:03]} 29. f4 {[%emt 0:00:01]} g6 {[%emt 0:00:01]} 30. g4 {[%emt 0:00:02]} Rc4 {[%emt 0:00:06]} 31. Rf1 {[%emt 0:00:18]} Rfc8 {[%emt 0:00:03]} 32. Rcd1 {[%emt 0:00:02]} Rc2 {[%emt 0:00:06]} 33. Rf2 {[%emt 0:00:04]} Rxf2 {[%emt 0:00:03]} 34. Kxf2 {[%emt 0:00:01]} Rc2+ {[%emt 0:00:01]} 35. Ke3 {[%emt 0:00:01]} Rc3 {[%emt 0:00:05]} 36. f5 {[%emt 0:00:01]} gxf5 {[%emt 0:00:07]} 37. gxf5 {[%emt 0:00:01]} Nc7 {[%emt 0:00:02]} 38. Kf4 {[%emt 0:00:04]} Rxa3 {[%emt 0:00:03]} 39. Kg5 {[%emt 0:00:05]} Ne8 {[%emt 0:00:08]} 40. Nf4 {[%emt 0:00:05]} Rg3+ {[%emt 0:00:04]} 41. Kh4 {[%emt 0:00:01]} Re3 {[%emt 0:00:08]} 42. Rxd5 {[%emt 0:00:03]} Re4 {[%emt 0:00:08]} 43. Kg3 {[%emt 0:00:03]} Rxb4 {[%emt 0:00:02]} 44. Nh5 {[%emt 0:00:03]} Nc7 45. Rd8+ {[%emt 0:00:09]} Kh7 {[%emt 0:00:20]} 46. Rd7 {[%emt 0:00:01]} Rc4 {[%emt 0:00:02]} 47. Rxf7+ {[%emt 0:00:07]} Kh6 {[%emt 0:00:01]} 48. Nf4 {[%emt 0:00:06]} Kg5 {[%emt 0:00:03]} 49. Nh3+ {[%emt 0:00:02]} Kh6 {[%emt 0:00:02]} 50. e6 {[%emt 0:00:01]} Re4 {[%emt 0:00:03]} 51. Rxc7 {[%emt 0:00:02]} a5 {[%emt 0:00:05]} 52. Kf3 {[%emt 0:00:04]} Re1 {[%emt 0:00:01]} 53. e7 {[%emt 0:00:05]} a4 {[%emt 0:00:05]} 54. Nf4 {[%emt 0:00:03]} a3 {[%emt 0:00:02]} 55. Ne6 {[%emt 0:00:04]} a2 {[%emt 0:00:02]} 56. e8=Q {[%emt 0:00:01]} 1-0

[Event "RUS-chT Blitz Men 2018"]
[Site "Sochi"]
[Date "2018.10.10"]
[Round "11"]
[White "Uzhva, Andrey"]
[Black "Basiev, Valeriy P."]
[Result "1-0"]
[ECO "A04"]
[WhiteElo "2270"]
[BlackElo "1990"]
[Annotator "NA"]
[PlyCount "73"]
[EventDate "2018.10.10"]
[EventType "swiss"]
[EventCountry "RUS"]
[SourceTitle "playchess.com"]
[Source "ChessBase"]
[SourceQuality "1"]
[TimeControl "180+2"]

1. Nf3 {[%emt 0:00:00]} g6 {[%emt 0:00:00]} 2. g3 {[%emt 0:00:01]} Bg7 3. Bg2 {[%emt 0:00:02]} d6 {[%emt 0:00:04]} 4. O-O {[%emt 0:00:03]} e5 {[%emt 0:00:02]} 5. c4 {[%emt 0:00:07]} Ne7 {[%emt 0:00:03]} 6. Nc3 {[%emt 0:00:02]} O-O {[%emt 0:00:01]} 7. d4 {[%emt 0:00:02]} Nd7 {[%emt 0:00:06]} 8. e4 {[%emt 0:00:32]} c6 {[%emt 0:00:01]} 9. Be3 {[%emt 0:00:04]} Qc7 {[%emt 0:00:01]} 10. Qd2 {[%emt 0:00:04]} Re8 {[%emt 0:00:02]} 11. Rfd1 {[%emt 0:00:06]} Nf8 {[%emt 0:00:03]} 12. dxe5 {[%emt 0:00:27]} dxe5 {[%emt 0:00:02]} 13. Bc5 {[%emt 0:00:02]} f6 {[%emt 0:00:16]} 14. Bd6 {[%emt 0:00:17]} Qd7 {[%emt 0:00:11]} 15. Qe2 {[%emt 0:00:17]} Qe6 {[%emt 0:00:02]} 16. Na4 {[%emt 0:00:05]} b6 {[%emt 0:00:04]} 17. Ba3 {[%emt 0:00:05]} c5 {[%emt 0:00:07]} 18. Nc3 {[%emt 0:00:02]} Nc6 {[%emt 0:00:02]} 19. Nd5 {[%emt 0:00:03]} Qf7 {[%emt 0:00:02]} 20. b4 {[%emt 0:00:06]} Nd4 {[%emt 0:00:15]} 21. Nxd4 {[%emt 0:00:03]} cxd4 {[%emt 0:00:01]} 22. c5 {[%emt 0:00:02]} bxc5 {[%emt 0:00:07]} 23. bxc5 {[%emt 0:00:00]} Ne6 {[%emt 0:00:15]} 24. c6 {[%emt 0:00:04]} Nc7 {[%emt 0:00:01]} 25. Qc4 {[%emt 0:00:03]} Be6 {[%emt 0:00:03]} 26. Qc5 {[%emt 0:00:18]} Bf8 {[%emt 0:00:05]} 27. Qa5 {[%emt 0:00:03]} Bxa3 {[%emt 0:00:04]} 28. Nxc7 {[%emt 0:00:03]} Bb2 {[%emt 0:00:08]} 29. Nxa8 {[%emt 0:00:06]} Bxa1 {[%emt 0:00:09]} 30. Rxa1 {[%emt 0:00:04]} Rxa8 {[%emt 0:00:01]} 31. c7 {[%emt 0:00:02]} Rc8 {[%emt 0:00:05]} 32. Rc1 {[%emt 0:00:01]} Bc4 {[%emt 0:00:15]} 33. Bh3 {[%emt 0:00:03]} Rxc7 {[%emt 0:00:08]} 34. Be6 {[%emt 0:00:08]} Bxe6 {[%emt 0:00:17]} 35. Rxc7 {[%emt 0:00:01]} Qe8 {[%emt 0:00:03]} 36. Rxa7 {[%emt 0:00:04]} Qc6 {[%emt 0:00:07]} 37. Qd8+ {[%emt 0:00:02]} 1-0